bitfinex-derivatives/quotes_BTCF0:USTF0_20250108
["timestamp","ask_amount","ask_price","bid_price","bid_amount"]
[1736336972498,0.03144069,95053.0,95039.0,0.4716]
[1736336972697,0.36196,95059.0,95058.0,0.052612]
[1736336972897,0.39313353,95059.0,95058.0,0.052612]
[1736336973301,0.03233353,95059.0,95058.0,0.052612]
[1736336973503,0.30793107,95068.0,95059.0,0.052612]
[1736336973810,0.530703,95075.0,95059.0,0.052612]
[1736336974201,0.18476404,95060.0,95059.0,0.052612]
[1736336974704,0.08476404,95060.0,95059.0,0.052612]
[1736336974903,0.052611,95060.0,95059.0,0.052612]
[1736336975800,0.052613,95056.0,95055.0,0.3608]
[1736336976593,0.3608,95060.0,95032.0,0.3608]
[1736336976802,0.052624,95037.0,95032.0,0.052626]
[1736336977001,0.052624,95037.0,95034.0,0.273225]
[1736336977397,0.3608,95039.0,95034.0,0.2206]
[1736336977597,0.3608,95039.0,95029.0,0.83652]
[1736336977598,0.052627,95031.0,95029.0,0.47212]
[1736336977798,0.052627,95031.0,95029.0,0.47156]
[1736336977799,0.3608,95030.0,95029.0,0.47156]
[1736336978897,0.3608,95030.0,95019.0,0.052634]
[1736336978898,0.39310708,95030.0,95019.0,0.052634]
[1736336979097,0.39310708,95030.0,95005.0,0.3608]
[1736336979098,0.49943646,95030.0,95005.0,0.3608]
[1736336979305,0.26529076,95023.0,95016.0,0.052636]
[1736336979500,0.3608,95014.0,94979.0,0.54982603]
[1736336979712,0.052645,94999.0,94980.0,0.052655]
[1736336979897,0.052645,94999.0,94989.0,0.10632938]
[1736336980296,0.3608,95003.0,94989.0,0.15897938]
[1736336980502,0.052644,95002.0,94989.0,0.10632938]
[1736336981099,0.03143648,95008.0,95000.0,0.3608]
[1736336981403,0.03143648,95008.0,95002.0,0.052643]
[1736336981603,0.3608,95014.0,95002.0,0.052643]
[1736336981804,0.052638,95012.0,95000.0,0.3608]
[1736336982500,0.03142065,95017.0,95003.0,0.052642]
[1736336982706,0.3608,95018.0,95008.0,0.41344]
[1736336984116,0.3608,95018.0,95008.0,0.41744]
[1736336985716,0.052635,95017.0,95008.0,0.41744]
[1736336986118,0.052639,95010.0,95008.0,0.004]
[1736336988319,0.052639,95010.0,95005.0,0.47172]
[1736336988521,0.052639,95010.0,95008.0,0.004]
[1736336989823,0.3608,95009.0,95008.0,0.004]
[1736336990122,0.657139,95009.0,95008.0,0.002]
[1736336990522,0.413439,95009.0,95008.0,0.002]
[1736336990912,0.413439,95009.0,95008.0,0.003]
[1736336991617,0.413439,95009.0,95005.0,0.47172]
[1736336991915,0.413439,95009.0,95008.0,0.002]
[1736336993424,0.413439,95009.0,95005.0,0.47472]
[1736336994125,0.413439,95009.0,95008.0,0.002]
[1736336994926,0.413439,95009.0,95005.0,0.47172]
[1736336994927,0.3608,95009.0,95005.0,0.47172]
[1736336995231,0.05264,95008.0,95005.0,0.47472]
[1736336996428,0.052636,95017.0,95005.0,0.47472]
[1736336996633,0.052636,95017.0,95008.0,0.002]
[1736336997428,0.052636,95017.0,95007.0,0.3608]
[1736336997622,0.052636,95017.0,95011.0,0.052638]
[1736336997830,0.052636,95017.0,95014.0,0.052637]
[1736336999029,0.3608,95029.0,95008.0,0.002]
[1736336999237,0.052632,95024.0,95016.0,0.052635]
[1736336999442,0.052632,95023.0,95016.0,0.052635]
[1736336999833,0.052633,95021.0,95016.0,0.052635]
[1736337000033,0.27088158,95034.0,95016.0,0.052635]
[1736337000242,0.3608,95028.0,95016.0,0.052635]
[1736337000436,0.052636,95015.0,95014.0,0.001]
[1736337000940,0.052633,95022.0,95017.0,0.052635]
[1736337001135,0.3608,95028.0,95019.0,0.3608]
[1736337001136,0.052633,95021.0,95019.0,0.3608]
[1736337002537,0.052633,95021.0,95019.0,0.413434]
[1736337003235,0.052633,95021.0,95019.0,0.3608]
[1736337004343,0.05263,95027.0,95023.0,0.052632]
[1736337004535,0.052626,95034.0,95033.0,0.052625]
[1736337004736,0.413419,95047.0,95030.0,0.3608]
[1736337004942,0.71936,95054.0,95039.0,0.3608]
[1736337004943,0.052615,95053.0,95039.0,0.3608]
[1736337005135,0.052615,95053.0,95040.0,0.2349]
[1736337005339,0.052616,95052.0,95048.0,0.052618]
[1736337005541,0.052616,95052.0,95040.0,0.2349]
[1736337005737,0.052617,95050.0,95046.0,0.052619]
[1736337005937,0.052617,95050.0,95047.0,0.052618]
[1736337006138,0.3608,95059.0,95040.0,0.2349]
[1736337006339,0.3608,95059.0,95049.0,0.10632938]
[1736337006545,0.052616,95051.0,95047.0,0.052618]
[1736337007249,0.052616,95051.0,95048.0,0.052617]
[1736337007444,0.052616,95051.0,95050.0,0.052617]
[1736337007952,0.40021988,95059.0,95046.0,0.052619]
[1736337008338,0.052616,95051.0,95047.0,0.052618]
[1736337009148,0.052616,95051.0,95050.0,0.052617]
[1736337009348,0.40021988,95059.0,95058.0,0.052612]
[1736337010150,0.3608,95059.0,95058.0,0.052612]
[1736337013248,0.2266,95081.0,95067.0,0.052607]
[1736337013549,0.052604,95074.0,95070.0,0.15893438]
[1736337013750,0.052603,95074.0,95070.0,0.052605]
[1736337014153,0.052603,95074.0,95065.0,0.2466]
[1736337014448,0.052603,95074.0,95073.0,0.052604]
[1736337015951,0.052603,95074.0,95065.0,0.2466]
[1736337015952,0.052608,95066.0,95065.0,0.2466]
[1736337016151,0.052608,95066.0,95059.0,0.2461]
[1736337016346,0.052608,95066.0,95064.0,0.052609]
[1736337016949,0.14934504,95080.0,95059.0,0.2461]
[1736337017156,0.14934504,95080.0,95072.0,0.052604]
[1736337017157,0.052604,95074.0,95072.0,0.052604]
[1736337017858,0.052608,95066.0,95062.0,0.05261]
[1736337018247,0.052608,95066.0,95059.0,0.2461]
[1736337018454,0.052608,95066.0,95064.0,0.052609]
[1736337020861,0.052608,95066.0,95059.0,0.2461]
[1736337021053,0.052608,95066.0,95065.0,0.052608]
[1736337021253,0.052605,95071.0,95059.0,0.2461]
[1736337021454,0.052605,95071.0,95070.0,0.052606]
[1736337021657,0.3608,95073.0,95072.0,0.052605]
[1736337022063,0.3608,95073.0,95067.0,0.052607]
[1736337022453,0.3608,95073.0,95063.0,0.10632938]
[1736337022761,0.413404,95073.0,95063.0,0.10632938]
[1736337023559,0.052605,95071.0,95069.0,0.052606]
[1736337023958,0.3608,95073.0,95072.0,0.052605]
[1736337026662,0.413404,95073.0,95072.0,0.052605]
[1736337027851,0.05261,95065.0,95064.0,0.052609]
[1736337028959,0.052607,95068.0,95060.0,0.052611]
[1736337029153,0.052607,95068.0,95067.0,0.052607]
[1736337030355,0.3608,95073.0,95072.0,0.052605]
[1736337033464,0.1,95080.0,95067.0,0.3608]
[1736337033660,0.047364,95080.0,95079.0,0.413401]
[1736337034063,0.047364,95080.0,95079.0,0.052601]
[1736337037967,0.047364,95080.0,95073.0,0.052604]
[1736337038164,0.052604,95074.0,95073.0,0.052604]
[1736337039476,0.3608,95075.0,95066.0,0.524047]
[1736337039477,0.052607,95068.0,95066.0,0.524047]
[1736337039775,0.052604,95074.0,95072.0,0.052604]
[1736337040259,0.3608,95075.0,95066.0,0.47144]
[1736337040465,0.3608,95075.0,95074.0,0.052603]
[1736337041165,0.047364,95080.0,95079.0,0.052601]
[1736337045979,0.047364,95080.0,95079.0,0.413401]
[1736337048279,0.047364,95080.0,95079.0,0.415401]
[1736337050384,0.099964,95080.0,95079.0,0.415401]
[1736337050585,0.047364,95080.0,95079.0,0.415401]
[1736337053786,0.099964,95080.0,95079.0,0.002]
[1736337054181,0.047364,95080.0,95079.0,0.054601]
[1736337054483,0.047364,95080.0,95079.0,0.415401]
[1736337057485,0.047364,95080.0,95079.0,0.417401]
[1736337064691,0.6,95100.0,95099.0,0.05259]
[1736337065293,0.6,95100.0,95099.0,0.41339]
[1736337065495,0.2441,95119.0,95118.0,0.052579]
[1736337065684,0.48486,95130.0,95118.0,0.052579]
[1736337065885,0.2499,95129.0,95118.0,0.052579]
[1736337066081,0.48486,95130.0,95118.0,0.052579]
[1736337066082,0.00116,95130.0,95118.0,0.052579]
[1736337066283,0.34930101,95131.0,95119.0,0.6007]
[1736337066284,0.30691336,95131.0,95119.0,0.6007]
[1736337066791,0.40151264,95136.0,95119.0,0.6007]
[1736337067492,0.3608,95136.0,95119.0,0.6007]
[1736337067689,0.3608,95136.0,95129.0,0.052573]
[1736337067892,0.3608,95136.0,95126.0,0.10632938]
[1736337068088,0.3608,95136.0,95130.0,0.052572]
[1736337068485,0.3608,95136.0,95126.0,0.10632938]
[1736337068687,0.052573,95129.0,95126.0,0.10632938]
[1736337068887,0.052573,95129.0,95125.0,0.052575]
[1736337069090,0.3608,95136.0,95125.0,0.052575]
[1736337069390,0.05257,95135.0,95126.0,0.10632938]
[1736337069598,0.052571,95134.0,95126.0,0.10632938]
[1736337069792,0.052576,95125.0,95120.0,0.10632938]
[1736337070093,0.3608,95136.0,95128.0,0.052573]
[1736337070296,0.052572,95131.0,95126.0,0.10632938]
[1736337070503,0.052574,95128.0,95122.0,0.052577]
[1736337070694,0.3608,95123.0,95114.0,0.052581]
[1736337070896,0.052578,95120.0,95115.0,0.52382]
[1736337071089,0.3608,95123.0,95115.0,0.47124]
[1736337071294,0.3608,95123.0,95119.0,0.052578]
[1736337071600,0.05257,95134.0,95122.0,0.001]
[1736337071807,0.05257,95134.0,95127.0,0.052574]
[1736337072099,0.05257,95134.0,95130.0,0.052572]
[1736337072397,0.2445,95135.0,95131.0,0.052572]
[1736337072700,0.2445,95135.0,95124.0,0.15890538]
[1736337072991,0.2445,95135.0,95122.0,0.001]
[1736337073192,0.3608,95123.0,95122.0,0.001]
[1736337073984,0.3608,95123.0,95115.0,0.47124]
[1736337074188,0.052578,95120.0,95119.0,0.001]
[1736337075000,0.052578,95120.0,95115.0,0.47124]
[1736337075001,0.413376,95123.0,95122.0,0.001]
[1736337075893,0.413376,95123.0,95115.0,0.47124]
[1736337075894,0.05258,95117.0,95115.0,0.47124]
[1736337076084,0.05258,95117.0,95115.0,0.83204]
[1736337076288,0.05258,95117.0,95115.0,0.88462]
[1736337076991,0.052578,95120.0,95117.0,0.05258]
[1736337077188,0.03457341,95122.0,95115.0,0.8326]
[1736337077393,0.3608,95123.0,95121.0,0.052577]
[1736337077597,0.3608,95123.0,95115.0,0.83204]
[1736337077598,0.08799066,95128.0,95115.0,0.8326]
[1736337077799,0.052574,95127.0,95123.0,0.052576]
[1736337078005,0.052575,95126.0,95123.0,0.052576]
[1736337078196,0.052576,95125.0,95123.0,0.052576]
[1736337079500,0.3608,95125.0,95115.0,0.8366]
[1736337079699,0.05258,95117.0,95115.0,0.888621]
[1736337079997,0.052576,95124.0,95117.0,0.052579]
[1736337080595,0.052576,95124.0,95123.0,0.003]
[1736337080793,0.3608,95128.0,95123.0,0.003]
[1736337081097,0.3608,95136.0,95134.0,0.05257]
[1736337082204,0.3608,95136.0,95134.0,0.05357]
[1736337082891,0.413369,95136.0,95134.0,0.001]
[1736337083699,0.413369,95136.0,95126.0,0.10632938]
[1736337083900,0.413369,95136.0,95134.0,0.05357]
[1736337084104,0.413369,95136.0,95134.0,0.001]
[1736337084697,0.4913,95135.0,95107.0,0.2378]
[1736337084997,0.05258,95116.0,95106.0,0.05416204]
[1736337085198,0.05258,95116.0,95115.0,0.3608]
[1736337085392,0.052585,95107.0,95106.0,0.00157704]
[1736337086405,0.2503,95112.0,95106.0,0.00157704]
[1736337086602,0.302883,95112.0,95111.0,0.052583]
[1736337087197,0.052579,95118.0,95109.0,0.3608]
[1736337087497,0.44842263,95123.0,95110.0,0.052583]
[1736337087696,0.052579,95119.0,95109.0,0.3608]
[1736337087898,0.052579,95119.0,95111.0,0.003]
[1736337089102,0.052579,95119.0,95117.0,0.052579]
[1736337089308,0.1,95140.0,95118.0,0.3608]
[1736337089510,0.3608,95133.0,95130.0,0.10632938]
[1736337089703,0.3608,95133.0,95125.0,0.052575]
[1736337089905,0.3608,95133.0,95120.0,0.15890638]
[1736337090299,0.052575,95126.0,95122.0,0.052577]
[1736337090506,0.3608,95133.0,95122.0,0.052577]
[1736337090809,0.052575,95126.0,95122.0,0.052577]
[1736337091199,0.052571,95132.0,95130.0,0.052572]
[1736337091395,0.052568,95138.0,95136.0,0.052569]
[1736337093096,0.052571,95134.0,95131.0,0.052572]
[1736337093301,0.052571,95134.0,95132.0,0.052571]
[1736337094708,0.052571,95134.0,95132.0,0.057571]
[1736337095708,0.152567,95140.0,95138.0,0.052568]
[1736337097006,0.152567,95140.0,95138.0,0.056568]
[1736337098508,0.1,95140.0,95138.0,0.056568]
[1736337098813,0.1,95140.0,95139.0,0.7156]
[1736337100714,0.1,95140.0,95139.0,0.7196]
[1736337103311,0.1,95140.0,95139.0,0.7156]
[1736337103611,0.1,95140.0,95139.0,0.7196]
[1736337104210,0.1,95140.0,95139.0,0.7156]
[1736337104407,0.1,95140.0,95139.0,0.004]
[1736337104616,0.152567,95140.0,95139.0,0.004]
[1736337106806,0.05257,95135.0,95130.0,0.15890138]
[1736337107008,0.052571,95133.0,95130.0,0.15890138]
[1736337107318,0.052571,95133.0,95130.0,0.052572]
[1736337107815,0.052571,95133.0,95131.0,0.052571]
[1736337108207,0.152567,95140.0,95136.0,0.052569]
[1736337108514,0.052568,95138.0,95136.0,0.052569]
[1736337109613,0.088259,95138.0,95136.0,0.052569]
[1736337111317,0.1,95140.0,95139.0,0.052568]
[1736337113418,0.1,95140.0,95139.0,0.056568]
[1736337114117,0.1,95140.0,95139.0,0.052568]
[1736337114310,0.1,95140.0,95139.0,0.056568]
[1736337115530,0.4608,95140.0,95139.0,0.004]
[1736337116811,0.4608,95140.0,95130.0,0.052572]
[1736337116812,0.052571,95134.0,95130.0,0.052572]
[1736337117211,0.3608,95131.0,95130.0,0.052572]
[1736337118117,0.05257,95135.0,95133.0,0.05257]
[1736337118317,0.1,95140.0,95137.0,0.052568]
[1736337118513,0.052567,95139.0,95137.0,0.052568]
[1736337118817,0.1,95140.0,95130.0,0.005]
[1736337119121,0.413371,95132.0,95130.0,0.057572]
[1736337119423,0.052571,95132.0,95130.0,0.057572]
[1736337119609,0.413371,95132.0,95130.0,0.057572]
[1736337120015,0.052571,95132.0,95130.0,0.052572]
[1736337121028,0.052571,95132.0,95130.0,0.057572]
[1736337123119,0.052568,95138.0,95136.0,0.052569]
[1736337124214,0.413368,95138.0,95136.0,0.056569]
[1736337124524,0.413368,95138.0,95136.0,0.004]
[1736337125428,0.3608,95137.0,95136.0,0.004]
[1736337125624,0.3608,95137.0,95116.0,0.00157677]
[1736337125817,0.052579,95119.0,95118.0,0.052579]
[1736337126218,0.3608,95123.0,95116.0,0.00157677]
[1736337126219,0.05258,95117.0,95116.0,0.00157677]
[1736337127021,0.05259,95099.0,95098.0,0.47112]
[1736337127327,0.052594,95091.0,95090.0,0.00157767]
[1736337127524,0.413394,95091.0,95090.0,0.00157767]
[1736337127723,0.3608,95091.0,95090.0,0.00157767]
[1736337128117,0.052588,95102.0,95099.0,0.052589]
[1736337128429,0.3608,95110.0,95097.0,0.3608]
[1736337128619,0.3608,95110.0,95109.0,0.052584]
[1736337128820,0.052581,95115.0,95111.0,0.052582]
[1736337129017,0.052581,95115.0,95113.0,0.052582]
[1736337129730,0.052584,95109.0,95107.0,0.47116]
[1736337130426,0.3608,95120.0,95107.0,0.47116]
[1736337130626,0.052582,95114.0,95113.0,0.052582]
[1736337131023,0.052584,95110.0,95107.0,0.523745]
[1736337131419,0.052584,95110.0,95108.0,0.052585]
[1736337134027,0.052584,95110.0,95108.0,0.057585]
[1736337139840,0.052584,95110.0,95108.0,0.052585]
[1736337140046,0.052584,95110.0,95108.0,0.057585]
[1736337142839,0.3608,95109.0,95108.0,0.057585]
[1736337143852,0.3608,95109.0,95108.0,0.005]
[1736337144041,0.052585,95108.0,95107.0,0.47116]
[1736337145049,0.413385,95108.0,95107.0,0.47116]
[1736337145956,0.052585,95108.0,95107.0,0.47116]
[1736337146252,0.052582,95114.0,95108.0,0.052585]
[1736337146454,0.052582,95113.0,95111.0,0.052583]
[1736337147846,0.052582,95113.0,95112.0,0.052582]
[1736337149645,0.052582,95113.0,95112.0,0.056582]
[1736337150454,0.3608,95117.0,95112.0,0.004]
[1736337150659,0.3608,95117.0,95116.0,0.05258]
[1736337150955,0.05258,95118.0,95116.0,0.05258]
[1736337151359,0.05258,95117.0,95116.0,0.05258]
[1736337152548,0.63011069,95129.0,95112.0,0.004]
[1736337152549,0.0967933,95128.0,95112.0,0.004]
[1736337152753,0.052577,95123.0,95122.0,0.052577]
[1736337153559,0.3608,95129.0,95119.0,0.72924]
[1736337153752,0.3608,95129.0,95128.0,0.052574]
[1736337154451,0.052571,95134.0,95119.0,0.7286]
[1736337154661,0.052571,95134.0,95133.0,0.052571]
[1736337156353,0.052571,95134.0,95133.0,0.053571]
[1736337157047,0.1,95140.0,95133.0,0.3618]
[1736337157249,0.1,95140.0,95138.0,0.052568]
[1736337157452,0.1,95140.0,95139.0,0.2334]
[1736337160252,0.1,95160.0,95159.0,0.052556]
[1736337160453,0.1,95160.0,95159.0,0.413356]
[1736337161956,0.104,95160.0,95159.0,0.413356]
[1736337166956,0.104,95160.0,95159.0,0.3608]
[1736337167669,0.104,95160.0,95159.0,0.413356]
[1736337172766,0.1,95160.0,95159.0,0.414356]
[1736337176971,0.10116,95180.0,95174.0,0.052548]
[1736337177174,0.10116,95180.0,95159.0,0.414356]
[1736337177175,0.17895026,95180.0,95179.0,0.052545]
[1736337177374,0.17895026,95180.0,95176.0,0.3608]
[1736337177375,0.052547,95177.0,95176.0,0.3608]
[1736337178971,0.002,95177.0,95176.0,0.413347]
[1736337179771,0.054547,95177.0,95176.0,0.3608]
[1736337180375,0.05255,95171.0,95170.0,0.10632938]
[1736337180685,0.052551,95169.0,95168.0,0.3608]
[1736337182773,0.053551,95169.0,95168.0,0.3608]
[1736337184284,0.07465234,95169.0,95168.0,0.3608]
[1736337185381,0.053551,95169.0,95168.0,0.3608]
[1736337186686,0.053551,95169.0,95168.0,0.8513]
[1736337189873,0.053551,95169.0,95168.0,0.3608]
[1736337192488,0.052557,95160.0,95159.0,0.3608]
[1736337193986,0.052557,95160.0,95159.0,0.3618]
[1736337194887,0.052557,95160.0,95159.0,0.001]
[1736337195387,0.293557,95160.0,95159.0,0.001]
[1736337195887,0.39032033,95160.0,95159.0,0.001]
[1736337196787,0.40703726,95160.0,95159.0,0.001]
[1736337196984,0.052563,95154.0,95140.0,0.3608]
[1736337197186,0.05257,95141.0,95140.0,0.3608]
[1736337198582,0.05257,95141.0,95140.0,0.3638]
[1736337199676,0.241,95160.0,95140.0,0.3638]
[1736337199879,0.241,95160.0,95149.0,0.3608]
[1736337200086,0.052565,95151.0,95149.0,0.3608]
[1736337201091,0.052565,95151.0,95149.0,0.3618]
[1736337201884,0.052565,95151.0,95149.0,0.3628]
[1736337202691,0.052565,95151.0,95149.0,0.415366]
[1736337204090,0.052565,95151.0,95149.0,0.3628]
[1736337204484,0.052565,95151.0,95149.0,0.415366]
[1736337205893,0.052565,95151.0,95150.0,0.052565]
[1736337206187,0.09675991,95169.0,95149.0,0.3628]
[1736337206393,0.09675991,95169.0,95156.0,0.052561]
[1736337206589,0.11354304,95169.0,95156.0,0.052561]
[1736337206784,0.052561,95158.0,95156.0,0.052561]
[1736337207494,0.052561,95157.0,95156.0,0.052561]
[1736337208395,0.052561,95157.0,95156.0,0.053561]
[1736337211298,0.052561,95157.0,95156.0,0.001]
[1736337212189,0.06952772,95157.0,95156.0,0.001]
[1736337214089,0.06952772,95157.0,95149.0,0.3608]
[1736337214090,0.01696672,95157.0,95149.0,0.3608]
[1736337214297,0.052562,95157.0,95156.0,0.001]
[1736337214694,0.052562,95157.0,95156.0,0.053562]
[1736337215687,0.052562,95157.0,95156.0,0.052562]
[1736337215891,0.052562,95157.0,95156.0,0.053562]
[1736337216488,0.052562,95157.0,95156.0,0.524642]
[1736337218202,0.052562,95157.0,95156.0,0.47208]
[1736337218497,0.052562,95157.0,95156.0,0.001]
[1736337220503,0.052558,95163.0,95156.0,0.001]
[1736337221900,0.413362,95157.0,95138.0,0.36181739]
[1736337222102,0.052571,95140.0,95138.0,0.36181739]
[1736337223396,0.052568,95146.0,95145.0,0.052568]
[1736337224796,0.052565,95152.0,95151.0,0.052563]
[1736337225109,0.052565,95152.0,95151.0,0.413363]
[1736337226800,0.052565,95152.0,95151.0,0.415363]
[1736337227297,0.052565,95152.0,95151.0,0.3628]
[1736337229909,0.052565,95152.0,95151.0,0.3608]
[1736337230104,0.052565,95152.0,95151.0,0.3628]
[1736337230696,0.052565,95152.0,95151.0,0.415365]
[1736337230897,0.052565,95152.0,95151.0,0.413365]
[1736337231101,0.01692117,95158.0,95151.0,0.3618]
[1736337231305,0.052561,95158.0,95156.0,0.052562]
[1736337231505,0.052561,95158.0,95151.0,0.3618]
[1736337231506,0.052561,95158.0,95157.0,0.052561]
[1736337234405,0.052564,95152.0,95151.0,0.3628]
[1736337234811,0.052564,95152.0,95151.0,0.3608]
[1736337236712,0.052564,95152.0,95151.0,0.3628]
[1736337237713,0.06970171,95152.0,95151.0,0.3628]
[1736337240720,0.06970171,95152.0,95151.0,0.3618]
[1736337241616,0.06970171,95152.0,95151.0,0.001]
[1736337242914,0.052566,95148.0,95147.0,0.47108]
[1736337244024,0.052566,95148.0,95147.0,0.47308]
[1736337245920,0.052566,95148.0,95147.0,0.47208]
[1736337246721,0.052566,95148.0,95147.0,0.47108]
[1736337247525,0.052567,95146.0,95145.0,0.00101731]
[1736337248715,0.052567,95146.0,95145.0,3.1e-07]
[1736337248914,0.052579,95126.0,95125.0,0.47112]
[1736337250324,0.413379,95126.0,95125.0,0.47112]
[1736337250622,0.413379,95126.0,95125.0,0.47312]
[1736337253229,0.00116,95133.0,95125.0,0.47312]
[1736337253527,0.052576,95131.0,95129.0,0.3608]
[1736337253722,0.052576,95131.0,95130.0,0.4997]
[1736337256023,0.052576,95131.0,95130.0,0.5007]
[1736337256224,0.413376,95131.0,95130.0,0.001]
[1736337256831,0.05258,95126.0,95125.0,0.47112]
[1736337257423,0.052576,95134.0,95125.0,0.47112]
[1736337257627,0.052576,95134.0,95133.0,0.3608]
[1736337258325,0.1,95160.0,95133.0,0.3608]
[1736337258529,0.1,95160.0,95146.0,0.3608]
[1736337258731,0.052568,95147.0,95146.0,0.3608]
[1736337260025,0.052568,95147.0,95146.0,0.3628]
[1736337260823,0.052568,95147.0,95146.0,0.3618]
[1736337262737,0.052568,95147.0,95146.0,0.001]
[1736337265840,0.052567,95150.0,95146.0,0.001]
[1736337266038,0.052568,95147.0,95146.0,0.001]
[1736337266627,0.01427786,95151.0,95137.0,0.15890338]
[1736337266832,0.052572,95140.0,95137.0,0.15890338]
[1736337267033,0.3608,95153.0,95137.0,0.052574]
[1736337267232,0.052573,95139.0,95137.0,0.052574]
[1736337267837,0.052573,95139.0,95137.0,0.054574]
[1736337269937,0.052573,95138.0,95137.0,0.054574]
[1736337272544,0.09676975,95152.0,95137.0,0.002]
[1736337272749,0.052569,95146.0,95143.0,0.05257]
[1736337272942,0.052569,95146.0,95145.0,0.3608]
[1736337274548,0.052569,95146.0,95145.0,0.3618]
[1736337275433,0.01485034,95152.0,95151.0,0.052566]
[1736337275434,0.052566,95152.0,95151.0,0.052566]
[1736337275639,0.30691336,95156.0,95153.0,0.052564]
[1736337275937,0.35947636,95156.0,95155.0,0.3608]
[1736337276142,0.30691336,95156.0,95155.0,0.413364]
[1736337276342,0.0146033,95161.0,95155.0,0.413364]
[1736337276550,0.052563,95156.0,95155.0,0.413364]
[1736337278039,0.053563,95156.0,95155.0,0.413364]
[1736337279446,0.001,95156.0,95154.0,0.00056]
[1736337279640,0.001,95156.0,95145.0,0.3608]
[1736337279641,0.659864,95155.0,95145.0,0.3608]
[1736337279843,0.052569,95146.0,95145.0,0.3608]
[1736337280443,0.052569,95146.0,95145.0,0.413369]
[1736337280643,0.052566,95151.0,95150.0,0.052566]
[1736337281451,0.09675903,95154.0,95153.0,0.052565]
[1736337282155,0.052564,95154.0,95153.0,0.052565]
[1736337282344,0.052566,95151.0,95147.0,0.052568]
[1736337282654,0.052566,95151.0,95149.0,0.052567]
[1736337282857,0.052566,95151.0,95150.0,0.2533]
[1736337284655,0.052566,95151.0,95150.0,0.305867]
[1736337284953,0.052563,95156.0,95155.0,0.052564]
[1736337285156,0.052563,95156.0,95155.0,0.413364]
[1736337285449,0.052563,95156.0,95155.0,0.3608]
[1736337286454,0.053563,95156.0,95155.0,0.3608]
[1736337289053,0.001,95156.0,95150.0,0.2533]
[1736337289253,0.052566,95151.0,95150.0,0.2533]
[1736337290444,0.052566,95151.0,95150.0,0.305866]
[1736337294063,0.052568,95147.0,95146.0,0.3608]
[1736337296266,0.052568,95147.0,95146.0,0.3618]
[1736337298563,0.09675817,95150.0,95147.0,0.052568]
[1736337299350,0.052566,95151.0,95147.0,0.052568]
[1736337299750,0.052566,95151.0,95147.0,0.053568]
[1736337299959,0.052566,95150.0,95147.0,0.053568]
[1736337300363,0.052567,95148.0,95147.0,0.001]
[1736337301065,0.052563,95156.0,95153.0,0.052564]
[1736337301363,0.09811398,95159.0,95155.0,0.3608]
[1736337301564,0.052562,95157.0,95155.0,0.3608]
[1736337303062,0.052562,95157.0,95155.0,0.413363]
[1736337303365,0.053562,95157.0,95155.0,0.413363]
[1736337303861,0.053562,95157.0,95155.0,0.41200713]
[1736337306164,0.052567,95148.0,95146.0,0.46712938]
[1736337306366,0.052567,95148.0,95146.0,0.3608]
[1736337307159,0.052572,95139.0,95138.0,0.00056]
[1736337307454,0.052572,95139.0,95129.0,0.3608]
[1736337307455,0.3608,95139.0,95129.0,0.3608]
[1736337307655,0.052571,95142.0,95138.0,0.3608]
[1736337307855,0.01440783,95148.0,95142.0,0.05257]
[1736337308059,0.09675817,95151.0,95147.0,0.3608]
[1736337308264,0.052567,95149.0,95147.0,0.3608]
[1736337310264,0.052567,95149.0,95147.0,0.3618]
[1736337310472,0.33760469,95152.0,95147.0,0.3618]
[1736337310667,0.33760469,95152.0,95151.0,0.052565]
[1736337311667,0.1,95160.0,95148.0,0.2387]
[1736337311863,0.152561,95160.0,95156.0,0.3608]
[1736337312865,0.052561,95159.0,95156.0,0.3608]
[1736337314273,0.052561,95159.0,95156.0,0.413362]
[1736337314475,0.052562,95157.0,95147.0,0.3608]
[1736337314672,0.052567,95148.0,95147.0,0.3608]
[1736337316163,0.052567,95148.0,95147.0,0.3618]
[1736337318774,0.09674896,95157.0,95147.0,0.3618]
[1736337318973,0.052564,95153.0,95147.0,0.46812938]
[1736337319372,0.052564,95153.0,95149.0,0.052566]
[1736337319579,0.052564,95153.0,95150.0,0.052566]
[1736337319866,0.09674896,95157.0,95153.0,0.052564]
[1736337320072,0.09674896,95157.0,95155.0,0.3608]
[1736337320274,0.052562,95158.0,95155.0,0.3608]
[1736337320876,0.1,95160.0,95158.0,0.052561]
[1736337321077,0.1,95160.0,95159.0,0.4789]
[1736337322483,0.052563,95156.0,95155.0,0.3608]
[1736337324176,0.053563,95156.0,95155.0,0.3608]
[1736337325777,0.053563,95156.0,95152.0,0.052565]
[1736337326283,0.053563,95156.0,95151.0,0.3608]
[1736337326284,0.052564,95153.0,95151.0,0.3608]
[1736337327175,0.052564,95153.0,95151.0,0.413365]
[1736337327373,0.1,95160.0,95151.0,0.3608]
[1736337327784,0.052562,95158.0,95157.0,0.052562]
[1736337328482,0.1,95160.0,95151.0,0.3608]
[1736337328483,0.1,95160.0,95159.0,0.052561]
[1736337328985,0.1,95160.0,95151.0,0.3608]
[1736337329185,0.1,95160.0,95154.0,0.052564]
[1736337329484,0.1,95160.0,95159.0,0.413361]
[1736337331188,0.101,95160.0,95159.0,0.413361]
[1736337332883,0.052565,95152.0,95151.0,0.00056]
[1736337333087,0.052564,95154.0,95153.0,0.052563]